bitfinex-derivatives/quotes_ETHF0:USTF0_20250626
["timestamp","ask_amount","ask_price","bid_price","bid_amount"]
[1750924324574,0.52051,2496.4,2496.3,3.2078]
[1750924324972,0.52051,2496.4,2496.3,3.72833]
[1750924325370,0.52051,2496.4,2496.3,3.2078]
[1750924331072,0.52051,2496.4,2496.3,6.27124696]
[1750924331272,0.52051,2496.4,2496.3,7.16361696]
[1750924331478,0.52051,2496.4,2496.3,4.6207]
[1750924331977,0.52051,2496.4,2496.3,5.14123]
[1750924332280,0.52051,2496.4,2496.3,4.6207]
[1750924332780,0.52051,2496.4,2496.3,5.14123]
[1750924332976,0.52051,2496.4,2496.3,7.68414696]
[1750924333581,0.5205,2496.5,2496.4,0.52049]
[1750924333877,0.5205,2496.5,2496.4,1.91829]
[1750924334975,0.52048,2496.6,2496.5,0.52047]
[1750924335175,1.47941349,2496.6,2496.5,1.91827]
[1750924336584,1.47941349,2496.6,2496.5,1.3978]
[1750924337486,1.47941349,2496.6,2496.5,1.91829]
[1750924337884,1.47941349,2496.6,2496.5,1.3978]
[1750924338584,1.47941349,2496.6,2496.5,1.91829]
[1750924338784,1.47941349,2496.6,2496.5,1.3978]
[1750924338987,1.47941349,2496.6,2496.5,1.91829]
[1750924339286,1.47941349,2496.6,2496.5,1.3978]
[1750924339788,1.47941349,2496.6,2496.5,1.91829]
[1750924340090,0.52048,2496.6,2496.5,1.91829]
[1750924343182,5.52037,2497.1,2497.0,0.52039]
[1750924343389,5.52037,2497.1,2497.0,3.06330696]
[1750924343887,5.0,2497.1,2497.0,3.06330696]
[1750924344189,5.52036,2497.1,2497.0,0.52039]
[1750924345992,5.52036,2497.1,2497.0,3.06330696]
[1750924346790,5.0,2497.1,2497.0,3.06330696]
[1750924346986,0.52028,2497.6,2497.2,1.30087]
[1750924347188,0.52028,2497.6,2497.5,3.06318696]
[1750924347694,0.52028,2497.6,2497.5,4.49498696]
[1750924348994,0.52028,2497.6,2497.5,3.97471696]
[1750924349694,0.52028,2497.6,2497.5,1.4318]
[1750924353890,0.52028,2497.6,2497.5,2.0917]
[1750924354499,0.52028,2497.6,2497.5,0.6599]
[1750924355608,0.5203,2497.4,2497.3,1.9868]
[1750924358299,0.5203,2497.4,2497.3,0.6726]
[1750924359503,0.52034,2497.2,2497.1,2.0693]
[1750924359709,0.52047,2496.6,2496.5,3.2078]
[1750924360408,0.52051,2496.4,2496.3,1.3651]
[1750924361703,0.52051,2496.4,2496.3,2.7987]
[1750924364805,0.52051,2496.4,2496.3,1.3651]
[1750924367411,0.52051,2496.4,2496.3,0.6702]
[1750924371308,0.52059,2496.0,2495.9,3.2078]
[1750924372912,0.52059,2496.1,2496.0,0.52057]
[1750924373108,0.52059,2496.1,2496.0,3.06348696]
[1750924373310,0.52059,2496.1,2496.0,4.48508696]
[1750924375018,0.52059,2496.1,2496.0,3.96451696]
[1750924375313,0.52059,2496.1,2496.0,4.48510696]
[1750924375513,0.52059,2496.1,2496.0,3.96451696]
[1750924376610,0.52059,2496.1,2496.0,1.4216]
[1750924382016,0.52059,2496.0,2495.9,3.2078]
[1750924384015,0.52064,2495.8,2495.7,2.0679]
[1750924384416,0.52064,2495.8,2495.7,0.7121]
[1750924385519,4.51839696,2495.9,2495.5,3.2078]
[1750924385912,0.5207,2495.5,2495.4,2.025]
[1750924386814,0.5207,2495.5,2495.4,2.54572]
[1750924387210,3.2078,2495.8,2495.4,2.025]
[1750924387412,0.52063,2495.9,2495.8,0.52064]
[1750924387611,1.30142,2496.2,2495.8,0.52064]
[1750924387612,0.52061,2496.0,2495.9,0.5206]
[1750924387818,0.52061,2496.0,2495.9,1.3987]
[1750924388417,0.52061,2496.0,2495.9,1.91931]
[1750924389215,0.52061,2496.0,2495.9,1.3987]
[1750924390212,0.52061,2496.0,2495.9,1.91931]
[1750924391718,7.70442,2496.2,2495.9,1.91931]
[1750924391719,6.403,2496.2,2495.9,1.3987]
[1750924391921,3.2078,2496.3,2496.2,0.52055]
[1750924392223,6.92353,2496.4,2496.3,0.52052]
[1750924392723,0.52055,2496.2,2496.1,1.91226]
[1750924392925,0.52055,2496.2,2496.1,0.52056]
[1750924393125,0.52059,2496.0,2495.9,0.52061]
[1750924393526,0.52059,2496.0,2495.8,3.8962]
[1750924393527,0.52061,2495.9,2495.8,4.41682]
[1750924394528,0.52061,2495.9,2495.8,4.41684]
[1750924395127,0.5206,2496.0,2495.9,0.52059]
[1750924397934,0.52061,2495.9,2495.8,3.8962]
[1750924398133,0.52061,2495.9,2495.8,4.41684]
[1750924398335,0.52061,2495.9,2495.8,3.8962]
[1750924400943,0.52061,2495.9,2495.8,4.41684]
[1750924401337,0.52061,2495.9,2495.8,3.8962]
[1750924401746,0.52061,2495.9,2495.8,4.41684]
[1750924402649,0.52061,2495.9,2495.8,3.8962]
[1750924403942,0.52061,2495.9,2495.8,4.5949]
[1750924404550,0.52061,2495.9,2495.8,5.11554]
[1750924404841,0.52061,2495.9,2495.8,4.5949]
[1750924405344,0.52061,2495.9,2495.8,5.11554]
[1750924405544,0.52061,2495.9,2495.8,4.5949]
[1750924406344,0.52061,2495.9,2495.8,5.11554]
[1750924407044,0.52061,2495.9,2495.8,4.5949]
[1750924408049,0.52066,2495.7,2495.6,1.57826758]
[1750924408353,0.52066,2495.7,2495.6,0.7102]
[1750924409344,1.4371746,2495.7,2495.6,0.7102]
[1750924410447,1.4371746,2495.7,2495.6,1.23088]
[1750924410749,1.4371746,2495.7,2495.6,0.7102]
[1750924411855,1.43720806,2495.7,2495.6,0.7102]
[1750924414649,6.66726502,2495.7,2495.4,1.4207]
[1750924414849,0.5207,2495.5,2495.4,2.0697]
[1750924415947,0.5207,2495.5,2495.2,3.8567]
[1750924415948,0.52074,2495.3,2495.2,0.6489]
[1750924416453,0.52076,2495.2,2495.1,0.6637]
[1750924417654,0.52087,2494.7,2494.6,2.36964645]
[1750924417848,0.52087,2494.7,2494.6,0.6637]
[1750924418851,0.52087,2494.7,2494.6,1.18459]
[1750924419053,0.52086,2494.8,2494.6,2.49389]
[1750924419354,0.52087,2494.7,2494.6,0.6637]
[1750924419956,0.52087,2494.7,2494.6,2.49389]
[1750924420152,0.52087,2494.7,2494.6,1.973]
[1750924420954,0.52087,2494.7,2494.6,2.49389]
[1750924421155,0.6737,2495.0,2494.7,0.52084]
[1750924421156,0.52085,2494.8,2494.7,0.52084]
[1750924421357,0.52084,2494.9,2494.8,0.52083]
[1750924421854,0.52084,2494.8,2494.7,1.83015]
[1750924422050,6.394,2495.0,2494.7,1.3093]
[1750924422254,0.52084,2494.8,2494.7,0.52085]
[1750924424755,0.52087,2494.7,2494.6,1.18457]
[1750924425252,1.30207,2494.9,2494.6,1.18457]
[1750924425253,0.52085,2494.9,2494.8,0.52083]
[1750924425651,4.50959,2495.5,2494.8,7.05282696]
[1750924425850,0.52078,2495.2,2495.1,3.06368696]
[1750924426045,0.52082,2495.0,2494.9,0.52082]
[1750924427558,0.52079,2495.1,2495.0,0.52077]
[1750924428156,0.52082,2495.0,2494.9,0.52081]
[1750924428957,0.52079,2495.1,2495.0,0.52077]
[1750924433359,0.52074,2495.4,2495.3,0.52072]
[1750924433560,1.47750282,2495.4,2495.3,0.52072]
[1750924433950,0.95676282,2495.4,2495.2,1.3798]
[1750924434156,0.52074,2495.3,2495.2,1.90055]
[1750924434454,0.52074,2495.3,2495.2,1.3798]
[1750924435166,1.47775385,2495.3,2495.2,1.3798]
[1750924436462,4.02067081,2495.3,2495.2,1.3798]
[1750924436667,0.52076,2495.2,2495.1,3.2078]
[1750924436869,0.5208,2495.0,2494.9,1.21281]
[1750924437770,0.5208,2495.1,2495.0,0.52079]
[1750924438067,1.30181,2495.4,2495.1,0.52077]
[1750924438365,0.52076,2495.2,2495.1,0.52077]
[1750924438562,0.52076,2495.3,2495.2,0.52076]
[1750924438758,1.47846677,2495.3,2495.2,0.52076]
[1750924439963,34.1568,2495.5,2495.2,0.52076]
[1750924440157,0.52074,2495.3,2495.2,0.52076]
[1750924440361,0.52078,2495.2,2495.1,0.52077]
[1750924440763,0.52078,2495.1,2495.0,3.2078]
[1750924441156,0.52078,2495.1,2495.0,3.7286]
[1750924441558,0.52078,2495.1,2495.0,3.2078]
[1750924442463,0.52086,2494.8,2494.7,3.2078]
[1750924442764,0.52086,2494.8,2494.7,5.10147]
[1750924449173,0.52082,2495.0,2494.9,0.52081]
[1750924449372,0.52082,2494.9,2494.8,1.90403]
[1750924451372,3.2078,2494.9,2494.6,2.36964645]
[1750924451675,0.52095,2494.4,2494.3,0.52093]
[1750924453175,0.52095,2494.3,2494.2,3.2078]
[1750924453768,0.52095,2494.3,2494.2,3.72877]
[1750924453970,0.52095,2494.4,2494.3,0.52093]
[1750924454172,0.52095,2494.3,2494.2,4.43576]
[1750924454367,3.2078,2494.9,2494.6,0.52088]
[1750924454581,2.26171521,2494.8,2494.3,2.54291696]
[1750924454775,0.52092,2494.5,2494.4,0.52092]
[1750924456969,0.5209,2494.6,2494.5,0.52089]
[1750924457469,0.52095,2494.4,2494.2,3.9148]
[1750924457668,0.52095,2494.4,2494.3,0.52093]
[1750924458571,0.52095,2494.3,2494.2,4.43575]
[1750924458769,0.52094,2494.4,2494.3,0.52093]
[1750924459177,0.52092,2494.5,2494.4,0.52091]
[1750924459378,0.5209,2494.6,2494.5,0.52089]
[1750924459674,1.47870253,2494.6,2494.5,0.52089]
[1750924460376,0.52095,2494.3,2494.2,4.43576]
[1750924460577,0.52095,2494.3,2494.2,3.9148]
[1750924461379,0.52095,2494.3,2494.2,4.43577]
[1750924463680,0.52095,2494.3,2494.2,3.72877]
[1750924466487,0.52095,2494.3,2494.2,3.2078]
[1750924467571,0.52095,2494.3,2494.2,3.72877]
[1750924469078,4.51995696,2494.6,2494.2,3.2078]
[1750924469284,0.52094,2494.4,2494.3,0.52093]
[1750924470589,0.52089,2494.7,2494.6,0.52086]
[1750924470888,0.52085,2494.8,2494.7,0.52087]
[1750924471086,3.72864,2494.9,2494.8,0.52084]
[1750924471282,0.95762002,2494.9,2494.8,3.72864]
[1750924471486,0.52081,2495.0,2494.9,0.52082]
[1750924471689,1.47848093,2495.0,2494.9,0.52082]
[1750924471987,1.47848093,2495.0,2494.9,1.83602]
[1750924472389,1.47848093,2495.0,2494.9,2.54232]
[1750924473780,1.47848093,2495.0,2494.9,3.25772]
[1750924474993,0.95767093,2495.0,2494.9,3.25772]
[1750924475390,1.47847093,2495.0,2494.9,3.25772]
[1750924478592,0.95767093,2495.0,2494.9,3.25772]
[1750924478793,2.54291696,2495.1,2494.5,2.89053645]
[1750924478995,2.54291696,2494.9,2494.4,10.2383]
[1750924479290,0.52083,2494.9,2494.8,0.52082]
[1750924479490,0.52083,2494.9,2494.8,6.89782]
[1750924479690,0.52083,2494.9,2494.8,9.70052]
[1750924479892,0.52082,2495.0,2494.9,0.52081]
[1750924480090,1.47801106,2495.0,2494.9,1.4024]
[1750924480493,1.47801106,2495.0,2494.9,7.7794]
[1750924480692,1.47801106,2495.0,2494.9,6.377]
[1750924480994,0.52082,2494.9,2494.8,1.4003]
[1750924481198,0.52082,2494.9,2494.8,7.7773]
[1750924481388,0.52082,2494.9,2494.8,1.4003]
[1750924482197,0.52082,2494.9,2494.8,7.7773]
[1750924482596,0.52082,2494.9,2494.8,9.63724]
[1750924483291,0.52082,2494.9,2494.8,9.1164]
[1750924483702,0.52082,2494.9,2494.8,9.63724]
[1750924484098,0.52082,2494.9,2494.8,9.1164]
[1750924484301,0.52084,2494.8,2494.7,9.5848]
[1750924484491,0.52084,2494.8,2494.7,10.10567]
[1750924484891,0.52084,2494.8,2494.7,11.44477]
[1750924485700,25.07484,2494.9,2494.8,0.52084]
[1750924485900,25.07484,2494.9,2494.8,1.87804]
[1750924488100,0.52084,2494.9,2494.8,1.87804]
[1750924488700,0.52084,2494.9,2494.8,8.25004]
[1750924488891,8.2078,2494.9,2494.1,6.36654864]
[1750924489096,0.52094,2494.5,2494.4,3.72871]
[1750924489495,0.52089,2494.7,2494.6,0.52086]
[1750924490200,0.52089,2494.7,2494.6,2.54136]
[1750924492505,0.52091,2494.5,2494.4,3.2078]
[1750924492702,3.06382696,2494.5,2494.4,3.2078]
[1750924493101,0.52097,2494.2,2494.1,6.49017]
[1750924495710,0.52097,2494.2,2494.1,5.9692]
[1750924495902,0.52097,2494.2,2494.1,6.49019]
[1750924496098,3.84538696,2494.2,2493.8,5.89514686]
[1750924496303,0.52103,2493.9,2493.8,6.11763041]
[1750924496502,0.52103,2493.9,2493.8,4.40633]
[1750924497607,0.52103,2493.9,2493.8,4.73422611]
[1750924498307,0.52103,2493.9,2493.8,4.40633]
[1750924500715,0.52103,2493.9,2493.8,4.73121906]
[1750924501016,0.52103,2493.9,2493.8,4.40633]
[1750924504320,0.5211,2493.6,2493.5,5.57744645]
[1750924504522,0.5211,2493.6,2493.5,3.2078]
[1750924504715,0.52114,2493.4,2493.3,1.3853]
[1750924504913,3.06405696,2493.4,2493.3,1.3853]
[1750924505622,1.97633,2493.7,2493.0,0.52122]
[1750924505623,0.5212,2493.1,2493.0,0.52122]
[1750924505920,0.5212,2493.2,2493.1,0.52118]
[1750924506745,0.52116,2493.4,2493.3,0.52116]
[1750924508218,0.52118,2493.3,2493.2,0.52116]
[1750924510725,0.52115,2493.4,2493.3,0.52114]
[1750924512023,0.52114,2493.4,2493.3,0.52114]
[1750924513621,0.52116,2493.3,2493.2,0.52116]
[1750924513920,3.06407696,2493.3,2493.2,0.52116]
[1750924514322,3.06407696,2493.3,2493.1,3.2078]
[1750924514323,0.52118,2493.2,2493.1,3.72898]
[1750924514717,0.52118,2493.2,2493.1,5.02858]
[1750924515421,0.52118,2493.2,2493.0,1.21242]
[1750924515615,0.5212,2493.1,2493.0,1.21242]
[1750924516627,0.5212,2493.1,2493.0,0.6912]
[1750924516924,0.52124,2492.9,2492.8,3.2078]
[1750924517327,0.52124,2492.9,2492.8,3.72906]
[1750924517724,0.52124,2492.9,2492.8,3.2078]
[1750924517928,0.52124,2492.9,2492.8,3.72906]
[1750924518123,0.52124,2492.9,2492.8,3.2078]
[1750924518321,2.54291696,2493.1,2492.8,3.2078]
[1750924518521,0.52124,2493.0,2492.9,0.52122]
[1750924518930,2.54291696,2493.3,2492.8,5.94445]
[1750924519129,2.54291696,2493.3,2493.1,0.52118]
[1750924519130,0.5212,2493.2,2493.1,0.52118]
[1750924519325,0.52119,2493.3,2493.2,0.52118]
[1750924519724,0.52119,2493.3,2493.2,2.55028]
[1750924520126,0.52119,2493.3,2492.8,3.2078]
[1750924520127,3.06410696,2493.3,2492.8,3.2078]
[1750924520326,0.52124,2493.0,2492.9,0.52124]
[1750924520527,0.52124,2493.0,2492.9,1.19584]
[1750924520723,0.52124,2493.0,2492.9,2.55034]
[1750924521325,0.52124,2492.9,2492.8,3.72905]
[1750924521527,0.52124,2492.9,2492.8,3.2078]
[1750924522529,0.52124,2492.9,2492.8,3.72906]
[1750924523335,0.52124,2492.9,2492.7,0.654]
[1750924523336,0.52126,2492.8,2492.7,0.654]
[1750924523532,0.52128,2492.7,2492.6,1.19589]
[1750924523830,0.52128,2492.7,2492.6,1.1959]
[1750924524335,0.5213,2492.6,2492.5,3.72912]
[1750924524526,3.06421696,2492.6,2492.5,3.72912]
[1750924525228,0.5213,2492.7,2492.6,0.52128]
[1750924526433,3.06419696,2492.8,2492.7,0.52128]
[1750924527127,0.52136,2492.5,2492.2,5.304]
[1750924527328,3.06427696,2492.5,2492.4,0.52135]
[1750924527932,0.52137,2492.4,2492.3,0.52135]
[1750924529439,0.52137,2492.4,2492.3,0.52137]
[1750924530341,0.52137,2492.3,2492.2,1.19967]
[1750924530533,0.52143,2492.1,2492.0,0.5214]
[1750924530836,0.52143,2492.1,2492.0,2.6456]
[1750924531228,2.54291696,2492.1,2491.6,3.2078]
[1750924531424,2.54291696,2491.9,2491.6,3.72931]
[1750924531734,3.06433696,2492.1,2492.0,0.52143]
[1750924531938,2.54291696,2492.1,2491.6,3.2078]
[1750924532237,3.06436696,2491.9,2491.8,0.52147]
[1750924532742,2.54291696,2491.9,2491.8,0.52147]
[1750924533231,0.52143,2492.1,2491.7,0.6784]
[1750924533232,0.52145,2492.0,2491.9,0.52144]
[1750924535437,3.06433696,2492.1,2492.0,0.52143]
[1750924535834,7.54291696,2492.1,2491.6,3.2078]
[1750924536035,5.75071696,2491.7,2490.9,3.2078]
[1750924536238,0.52154,2491.5,2491.2,3.2078]
[1750924536434,3.21851696,2491.6,2491.3,0.52156]
[1750924536635,2.54291696,2491.6,2491.2,3.2078]
[1750924536836,2.54291696,2491.6,2491.3,2.0093]
[1750924537243,0.52156,2491.4,2491.3,2.0093]
[1750924537539,2.54291696,2491.6,2491.3,2.0093]
[1750924537733,0.52156,2491.4,2491.3,2.0093]
[1750924538135,3.06447696,2491.4,2491.3,0.6923]
[1750924538635,0.5216,2491.2,2491.1,3.2078]
[1750924538839,3.06451696,2491.2,2491.1,3.2078]
[1750924539434,0.52162,2491.1,2491.0,1.331]
[1750924539836,0.52166,2490.9,2490.8,0.6821]
[1750924540041,0.52172,2490.6,2490.5,3.2078]
[1750924540246,0.52174,2490.5,2490.4,1.989]
[1750924541439,2.54291696,2490.6,2490.2,0.52179]
[1750924541641,0.52177,2490.4,2490.3,2.6785]
[1750924541833,0.52181,2490.2,2490.1,0.52181]
[1750924542038,0.52182,2490.2,2490.0,3.2078]
[1750924542238,0.52182,2490.2,2489.9,2.6785]
[1750924542239,0.52185,2490.0,2489.9,1.3607]
[1750924543342,0.52182,2490.2,2490.1,0.52183]
[1750924543551,9.08794138,2490.4,2490.0,1.3907]
[1750924543851,0.52183,2490.1,2490.0,1.91253]
[1750924544447,0.52182,2490.2,2490.0,1.91253]
[1750924544649,0.52183,2490.1,2490.0,1.91253]
[1750924544942,0.52183,2490.1,2490.0,1.3907]
[1750924545546,0.52185,2490.0,2489.9,1.3607]
[1750924546145,3.2078,2490.0,2489.4,3.2078]
[1750924546448,0.52197,2489.4,2489.3,1.3933]
[1750924546632,0.52197,2489.4,2489.3,2.802]
[1750924546837,0.52197,2489.4,2489.3,3.324]
[1750924547547,0.52197,2489.4,2489.3,2.802]
[1750924547739,0.52197,2489.4,2489.3,3.324]
[1750924548043,0.52197,2489.4,2489.3,2.802]
[1750924548435,0.52197,2489.4,2489.3,3.324]
[1750924549536,3.2078,2489.7,2489.3,2.802]
[1750924549742,3.2078,2490.1,2489.5,3.2078]
[1750924549939,0.5219,2489.8,2489.7,0.5219]
[1750924550145,0.52191,2489.7,2489.6,1.94872]
[1750924550451,0.52197,2489.4,2489.3,1.3933]
[1750924551046,0.52197,2489.4,2489.3,2.8201]
[1750924551441,0.52197,2489.4,2489.3,1.3933]
[1750924551948,0.52197,2489.4,2489.3,3.3421]
[1750924552153,0.52197,2489.4,2489.3,2.8201]
[1750924552349,0.52197,2489.4,2489.3,3.3421]
[1750924553252,0.80304,2489.5,2489.4,0.80302]
[1750924553549,3.2078,2489.8,2489.4,1.3895]
[1750924553748,0.80301,2489.6,2489.5,0.803]
[1750924554249,3.2078,2490.1,2489.4,1.3895]
[1750924554553,0.8029,2489.9,2489.8,0.80289]
[1750924554958,0.80288,2490.0,2489.9,0.80286]
[1750924555346,0.80285,2490.0,2489.9,0.80286]
[1750924555543,0.80285,2490.0,2489.9,2.91596]
[1750924555856,2.00676,2490.5,2489.9,2.1131]
[1750924556047,0.80278,2490.3,2490.2,0.80276]
[1750924556248,0.80278,2490.3,2489.9,2.1131]
[1750924556249,0.80275,2490.4,2490.3,0.80272]
[1750924556546,3.2078,2490.7,2490.4,0.8027]
[1750924556861,2.00666,2490.6,2490.1,3.2078]
[1750924557050,0.80277,2490.3,2490.2,2.23856]
[1750924557654,0.80274,2490.4,2490.3,0.80273]
[1750924558857,0.80271,2490.5,2490.4,0.8027]
[1750924559054,3.2078,2490.7,2490.2,3.44274]
[1750924559355,2.00641,2490.9,2490.2,3.44274]
[1750924559558,2.00641,2490.9,2490.1,3.2078]
[1750924559559,0.80269,2490.5,2490.4,4.01051]
[1750924560356,0.80265,2490.6,2490.5,0.80266]
[1750924560657,0.80265,2490.6,2490.5,1.3451]
[1750924561658,0.80281,2490.1,2490.0,4.01062]
[1750924562252,0.80281,2490.1,2489.9,0.6773]
[1750924562253,0.80285,2490.0,2489.9,0.6773]
[1750924562953,0.80285,2490.0,2489.9,2.0614]
[1750924563557,0.80285,2490.0,2489.9,2.86428]
[1750924563968,0.80285,2490.0,2489.9,2.0614]
[1750924564156,0.80285,2490.0,2489.9,2.86428]
[1750924565060,0.80285,2490.0,2489.9,2.0614]
[1750924565560,0.80285,2490.0,2489.9,2.86428]
[1750924566162,0.80282,2490.1,2490.0,0.80281]
[1750924566461,1.7618884,2490.1,2490.0,1.3528]
[1750924567061,0.9590684,2490.1,2489.7,3.2078]
[1750924567262,0.80288,2490.0,2489.9,0.80287]
[1750924567567,0.80288,2490.0,2489.9,0.80286]
[1750924567568,0.80286,2490.0,2489.9,0.80286]
[1750924567756,3.2078,2490.2,2489.8,1.3528]
[1750924567757,3.2078,2490.2,2490.1,0.80281]
[1750924567964,0.96006847,2490.2,2490.1,0.80281]
[1750924568161,0.8027,2490.5,2490.1,2.00704]
[1750924568363,0.8027,2490.5,2490.4,0.8027]
[1750924568759,0.80268,2490.6,2490.5,0.80269]
[1750924568959,0.80268,2490.6,2490.5,0.41116247]
[1750924569267,1.76341143,2490.8,2490.7,0.80262]
[1750924569461,1.76402895,2490.8,2490.7,0.80262]
[1750924570466,0.80264,2490.7,2490.6,0.80263]
[1750924570664,1.76405895,2490.7,2490.6,0.80263]
[1750924571669,0.96141895,2490.7,2490.6,0.80263]
[1750924572059,0.96141895,2490.7,2490.6,5.80263]
[1750924572264,0.80255,2491.0,2490.8,0.80258]
[1750924572560,0.80255,2491.0,2490.9,2.12106]
[1750924572759,1.76308252,2491.0,2490.9,2.12106]
[1750924573569,1.76308252,2491.0,2490.9,1.3185]
[1750924573868,1.76308252,2491.0,2490.9,2.12106]
[1750924574069,1.76308252,2491.0,2490.9,1.3185]
[1750924574264,1.76308252,2491.0,2490.9,2.12106]
[1750924574676,1.76308252,2491.0,2490.9,2.81596]
[1750924575270,1.76308252,2491.0,2490.9,2.0134]
[1750924575468,1.76308252,2491.0,2490.9,2.81596]
[1750924576168,0.80255,2491.0,2490.9,2.81596]
[1750924576769,0.80251,2491.1,2491.0,0.80249]
[1750924576965,1.76126117,2491.1,2491.0,2.15379]
[1750924577463,0.80251,2491.1,2491.0,2.15379]
[1750924577767,3.2078,2491.2,2491.1,0.80249]
[1750924577971,0.80246,2491.2,2491.1,0.80249]
[1750924578669,0.80249,2491.1,2491.0,2.1538]
[1750924582668,0.80248,2491.2,2491.1,0.80245]
[1750924583074,3.2078,2491.5,2491.1,2.00616]
[1750924583272,0.8024,2491.4,2491.3,4.0102]
[1750924583474,0.80239,2491.5,2491.4,0.80236]
[1750924583775,0.80239,2491.5,2491.4,2.17276]
[1750924584170,0.80235,2491.6,2491.5,0.80233]
[1750924584367,1.76047459,2491.6,2491.5,0.80233]
[1750924584570,1.76045459,2491.6,2491.5,1.47173]
[1750924587280,0.80232,2491.7,2491.6,0.80233]
[1750924587480,0.80232,2491.7,2491.6,2.88283]
[1750924589680,0.80232,2491.7,2491.6,2.0805]
[1750924589886,0.80232,2491.7,2491.6,2.88283]
[1750924591191,0.80233,2491.6,2491.5,0.6694]
[1750924591384,0.8024,2491.4,2491.3,3.2078]
[1750924591688,0.80243,2491.3,2491.2,0.80245]
[1750924594896,0.80246,2491.2,2491.1,2.87437]
[1750924595796,0.6757,2491.5,2491.1,2.0719]
[1750924595998,0.80242,2491.4,2491.3,0.8024]
[1750924596198,0.80237,2491.6,2491.5,0.80234]
[1750924596903,0.80232,2491.7,2491.6,0.80231]
[1750924597297,0.80228,2491.8,2491.7,0.80226]
[1750924597599,1.76103888,2491.8,2491.7,0.80226]
[1750924597799,0.80233,2491.7,2491.6,0.8023]
[1750924599098,1.76139146,2491.7,2491.6,0.8023]
[1750924599399,0.80233,2491.6,2491.5,2.20214]
[1750924599601,0.80231,2491.7,2491.6,0.8023]
[1750924599994,0.95937968,2491.7,2491.6,0.8023]
[1750924601097,7.8888973,2492.3,2491.6,13.41174138]
[1750924601291,7.8888973,2492.3,2492.2,0.80214]
[1750924601692,0.80216,2492.2,2492.1,0.80215]
[1750924602492,0.80217,2492.1,2492.0,2.92878]
[1750924604302,9.0920573,2492.3,2492.2,0.80214]
[1750924604303,7.8889173,2492.3,2492.2,0.80214]
[1750924605005,0.80213,2492.3,2492.2,0.80214]
[1750924605204,4.0099,2492.4,2492.3,0.80211]
[1750924605906,0.8021,2492.4,2492.3,0.80211]
[1750924606106,4.00987,2492.5,2492.4,0.80207]
[1750924606808,0.8021,2492.4,2492.3,0.80208]
[1750924608801,0.80211,2492.3,2492.2,2.16042]
[1750924609111,0.80211,2492.3,2492.2,0.80212]
[1750924613101,1.75726223,2492.3,2492.2,0.80212]
[1750924614400,0.95515223,2492.3,2492.2,0.80212]
[1750924614608,0.80209,2492.4,2492.3,0.80207]
[1750924615206,0.80206,2492.5,2492.4,0.80207]
[1750924615406,1.75716566,2492.5,2492.4,0.80207]
[1750924619311,0.95510566,2492.5,2492.4,0.80207]
[1750924619510,0.80202,2492.6,2492.5,0.80204]
[1750924619808,0.80201,2492.6,2492.5,0.80204]
[1750924620308,0.80201,2492.6,2492.5,1.48564]
[1750924620505,1.75680081,2492.6,2492.5,1.48564]
[1750924621303,1.75681357,2492.6,2492.5,1.48564]
[1750924621508,0.80201,2492.6,2492.5,1.48564]
[1750924622911,4.00977,2492.8,2492.7,0.80198]
[1750924623209,4.16256917,2492.8,2492.7,0.80198]
[1750924623414,0.95476917,2492.8,2492.7,0.80198]
[1750924623622,0.80194,2492.9,2492.8,0.80192]
[1750924624114,1.75664889,2492.9,2492.8,0.80192]
[1750924624313,0.80194,2492.9,2492.8,0.80192]
[1750924624910,0.8019,2493.0,2492.9,0.80189]
[1750924625308,1.75659588,2493.0,2492.9,0.80189]
[1750924626916,0.95469588,2493.0,2492.9,0.80189]
[1750924627715,0.95469588,2493.0,2492.9,1.52119]
[1750924628111,1.75657588,2493.0,2492.9,1.52119]
[1750924628318,1.75657588,2493.0,2492.9,4.72899]
[1750924629309,0.95469588,2493.0,2492.9,4.72899]
[1750924629814,1.75657588,2493.0,2492.9,4.72899]
[1750924631514,1.75657588,2493.0,2492.9,4.72901]
[1750924632018,1.75657588,2493.0,2492.9,3.9271]
[1750924632213,1.75657588,2493.0,2492.9,4.72901]
[1750924632518,1.75657588,2493.0,2492.9,5.2812]
[1750924632717,0.80188,2493.0,2492.9,6.08311]
[1750924632919,1.75637559,2493.0,2492.9,6.08311]
[1750924633616,1.75637559,2493.0,2492.9,5.2812]
[1750924633819,1.75635694,2493.0,2492.9,5.2812]
[1750924634019,0.80188,2493.0,2492.9,5.2812]
[1750924634418,0.80188,2493.0,2492.9,6.08311]
[1750924635113,0.80186,2493.1,2493.0,0.80185]
[1750924635515,1.75639181,2493.1,2493.0,0.80185]
[1750924635719,0.80188,2493.0,2492.9,6.0831]
[1750924635920,0.80187,2493.1,2493.0,0.80185]
[1750924636123,0.80188,2493.0,2492.9,6.08309]
[1750924639823,2.00449,2493.3,2492.9,5.2812]
[1750924640126,0.80185,2493.1,2493.0,1.3984]
[1750924640319,1.75771949,2493.1,2493.0,2.20028]
[1750924641118,0.95586949,2493.1,2493.0,2.20028]
[1750924641310,0.80185,2493.1,2493.0,2.20026]
[1750924641714,0.80184,2493.2,2493.1,0.80182]
[1750924641918,0.80184,2493.2,2493.1,1.46352]
[1750924642122,1.7579425,2493.2,2493.1,1.46352]
[1750924643223,1.7579425,2493.2,2493.1,0.6617]
[1750924643626,0.80188,2493.0,2492.9,4.72899]
[1750924645826,0.80187,2493.1,2493.0,0.80184]
[1750924646023,1.75862837,2493.1,2493.0,2.16134]
[1750924649927,1.75862837,2493.1,2493.0,1.3595]
[1750924650531,0.80188,2493.0,2492.9,3.9271]
[1750924650826,1.75863837,2493.0,2492.9,3.9271]